fUSD/lending_fUSD_20250123
["ID","MTS","AMOUNT","RATE_DAILY","PERIOD"]
[350087919,1737611460588,-500.0,0.00020272,2]
[350087920,1737611460601,-2635.11,0.00020272,2]
[350087921,1737611460611,-634.28,0.00020272,2]
[350087922,1737611460619,-151.0,0.00020272,2]
[350087923,1737611460629,-1230.27,0.00020272,2]
[350087924,1737611460639,-500.0,0.00020272,2]
[350087925,1737611460648,-582.1,0.00020272,2]
[350087926,1737611460658,-500.0,0.00020272,2]
[350087927,1737611460668,-500.0,0.00020272,2]
[350087928,1737611460678,-1842.56,0.00020272,2]
[350087929,1737611460687,-424.70922913,0.00020272,2]
[350087930,1737611460697,-500.0,0.00020272,2]
[350087931,1737611460707,-500.0,0.00020272,2]
[350087932,1737611460717,-862.13,0.00020272,2]
[350087933,1737611460727,-169.064511,0.00020272,2]
[350087934,1737611460741,-500.0,0.00020272,2]
[350087935,1737611460751,-169.064511,0.00020272,2]
[350087936,1737611460761,-500.0,0.00020272,2]
[350087937,1737611460770,-687.14,0.00020272,2]
[350087938,1737611460784,-500.0,0.00020272,2]
[350087939,1737611460793,-608.15575848,0.00020272,2]
[350087940,1737611460803,-433.512751,0.00020272,2]
[350087941,1737611460812,-500.0,0.00020272,2]
[350087942,1737611460822,-500.0,0.00020272,2]
[350087943,1737611460831,-433.512751,0.00020272,2]
[350087944,1737611460841,-1223.08,0.00020272,2]
[350087945,1737611460850,-653.44,0.00020272,2]
[350087946,1737611460859,-500.0,0.00020272,2]
[350087947,1737611460869,-568.47,0.00020272,2]
[350087948,1737611460879,-803.35,0.00020272,2]
[350087949,1737611460888,-519.41,0.00020272,2]
[350087950,1737611460898,-1382.01,0.00020272,2]
[350087951,1737611460907,-500.0,0.00020272,2]
[350087952,1737611460916,-1006.43,0.00020272,2]
[350087953,1737611460926,-500.0,0.00020272,2]
[350087954,1737611460935,-1438.72,0.00020272,2]
[350087955,1737611460945,-1915.2,0.00020272,2]
[350087956,1737611460954,-500.0,0.00020272,2]
[350087957,1737611460963,-500.0,0.00020272,2]
[350087958,1737611460972,-798.39,0.00020272,2]
[350087959,1737611460981,-2677.87,0.00020272,2]
[350087960,1737611460996,-2057.62,0.00020272,2]
[350087961,1737611461005,-500.0,0.00020273,2]
[350087962,1737611461015,-500.0,0.00020273,2]
[350087963,1737611461024,-500.0,0.00020273,2]
[350087964,1737611461034,-500.0,0.00020273,2]
[350087965,1737611461043,-500.0,0.00020273,2]
[350087966,1737611461053,-500.0,0.00020273,2]
[350087967,1737611461062,-500.0,0.00020273,2]
[350087968,1737611461072,-500.0,0.00020273,2]
[350087969,1737611461081,-461.46112826,0.00020273,2]
[350087970,1737611461091,-500.0,0.00020273,2]
[350087971,1737611461100,-500.0,0.00020273,2]
[350087972,1737611461110,-500.0,0.00020273,2]
[350087973,1737611461119,-151.0,0.00020273,2]
[350087974,1737611461129,-500.0,0.00020273,2]
[350087975,1737611461138,-546.79540246,0.00020273,2]
[350087976,1737611461148,-500.0,0.00020273,2]
[350087977,1737611461158,-500.0,0.00020273,2]
[350087978,1737611461167,-500.0,0.00020273,2]
[350087979,1737611461176,-500.0,0.00020273,2]
[350087980,1737611461186,-500.0,0.00020273,2]
[350087981,1737611461195,-513.68798811,0.00020273,2]
[350087982,1737611461205,-151.0,0.00020273,2]
[350087983,1737611461214,-500.0,0.00020273,2]
[350087984,1737611461223,-500.0,0.00020273,2]
[350087985,1737611461233,-500.0,0.00020273,2]
[350087986,1737611461244,-500.0,0.00020273,2]
[350087987,1737611461254,-500.0,0.00020273,2]
[350087988,1737611461263,-500.0,0.00020273,2]
[350087989,1737611461273,-513.53,0.00020273,2]
[350087990,1737611461283,-500.0,0.00020273,2]
[350087991,1737611461292,-500.0,0.00020273,2]
[350087992,1737611461302,-500.0,0.00020273,2]
[350087993,1737611461312,-500.0,0.00020273,2]
[350087994,1737611461322,-605.60073604,0.00020273,2]
[350087995,1737611461331,-500.0,0.00020273,2]
[350087996,1737611461342,-500.0,0.00020273,2]
[350087997,1737611461351,-500.0,0.00020273,2]
[350087998,1737611461361,-500.0,0.00020273,2]
[350087999,1737611461371,-500.0,0.00020273,2]
[350088000,1737611461386,-532.0,0.00020273,2]
[350088001,1737611461395,-500.0,0.00020273,2]
[350088002,1737611461405,-500.0,0.00020273,2]
[350088003,1737611461414,-854.04,0.00020273,2]
[350088004,1737611461424,-500.0,0.00020273,2]
[350088005,1737611461433,-580.04674925,0.00020273,2]
[350088006,1737611461443,-500.0,0.00020273,2]
[350088007,1737611461453,-500.0,0.00020273,2]
[350088008,1737611461463,-516.91877049,0.00020273,2]
[350088009,1737611461473,-500.0,0.00020273,2]
[350088010,1737611461484,-500.0,0.00020273,2]
[350088011,1737611461494,-500.0,0.00020273,2]
[350088012,1737611461504,-416.38818257,0.00020273,2]
[350088013,1737611461514,-500.0,0.00020273,2]
[350088014,1737611461523,-500.0,0.00020273,2]
[350088015,1737611461533,-751.33,0.00020273,2]
[350088016,1737611461545,-500.0,0.00020273,2]
[350088017,1737611461557,-500.0,0.00020273,2]
[350088018,1737611461567,-500.0,0.00020273,2]
[350088019,1737611461577,-151.0,0.00020273,2]
[350088020,1737611461587,-151.0,0.00020273,2]
[350088021,1737611461600,-645.53,0.00020273,2]
[350088022,1737611461610,-716.43,0.00020273,2]
[350088023,1737611461619,-512.55121164,0.00020273,2]
[350088024,1737611461629,-500.0,0.00020273,2]
[350088025,1737611461639,-500.0,0.00020273,2]
[350088026,1737611461650,-500.0,0.00020273,2]
[350088027,1737611461659,-500.0,0.00020273,2]
[350088028,1737611461669,-500.0,0.00020273,2]
[350088029,1737611461680,-500.0,0.00020273,2]
[350088030,1737611461690,-500.0,0.00020273,2]
[350088031,1737611461700,-500.0,0.00020273,2]
[350088032,1737611461710,-500.0,0.00020273,2]
[350088033,1737611461720,-500.0,0.00020273,2]
[350088034,1737611461730,-500.0,0.00020273,2]
[350088035,1737611461742,-500.0,0.00020273,2]
[350088036,1737611461752,-500.0,0.00020273,2]
[350088037,1737611461762,-500.0,0.00020273,2]
[350088038,1737611461772,-500.0,0.00020273,2]
[350088039,1737611461782,-500.0,0.00020273,2]
[350088040,1737611461791,-500.0,0.00020273,2]
[350088041,1737611461801,-519.43804642,0.00020273,2]
[350088042,1737611461810,-537.48,0.00020273,2]
[350088043,1737611461820,-500.0,0.00020273,2]
[350088044,1737611461830,-500.0,0.00020273,2]
[350088045,1737611461839,-500.0,0.00020273,2]
[350088046,1737611461849,-500.0,0.00020273,2]
[350088047,1737611461859,-500.0,0.00020273,2]
[350088048,1737611461869,-500.0,0.00020273,2]
[350088049,1737611461878,-500.0,0.00020273,2]
[350088050,1737611461888,-500.0,0.00020273,2]
[350088051,1737611461897,-500.0,0.00020273,2]
[350088052,1737611461907,-398.8771839,0.00020273,2]
[350088053,1737611461917,-522.36983923,0.00020273,2]
[350088054,1737611461927,-500.0,0.00020273,2]
[350088055,1737611461937,-500.0,0.00020273,2]
[350088056,1737611461946,-423.22421727,0.00020273,2]
[350088057,1737611461956,-1962.38,0.00020273,2]
[350088058,1737611461966,-5446.26,0.00020273,2]
[350088059,1737611461976,-500.0,0.00020273,2]
[350088060,1737611461986,-1116.01,0.00020273,2]
[350088061,1737611461997,-518.92093253,0.00020273,2]
[350088062,1737611462007,-500.0,0.00020273,2]
[350088063,1737611462016,-1678.25,0.00020273,2]
[350088064,1737611462026,-1056.81,0.00020273,2]
[350088065,1737611462036,-500.0,0.00020273,2]
[350088066,1737611462050,-500.0,0.00020273,2]
[350088067,1737611462060,-500.0,0.00020273,2]
[350088068,1737611462070,-500.0,0.00020273,2]
[350088069,1737611462080,-881.08,0.00020273,2]
[350088070,1737611462090,-500.0,0.00020273,2]
[350088071,1737611462101,-500.0,0.00020273,2]
[350088072,1737611462111,-2041.21,0.00020273,2]
[350088073,1737611462121,-1105.7,0.00020273,2]
[350088074,1737611462132,-500.0,0.00020273,2]
[350088075,1737611462142,-500.0,0.00020273,2]
[350088076,1737611462152,-500.0,0.00020273,2]
[350088077,1737611462162,-941.55,0.00020273,2]
[350088078,1737611462172,-500.0,0.00020273,2]
[350088079,1737611462182,-2112.6,0.00020273,2]
[350088080,1737611462192,-1306.29,0.00020273,2]
[350088081,1737611462201,-500.0,0.00020273,2]
[350088082,1737611462211,-1757.87,0.00020273,2]
[350088083,1737611462221,-500.0,0.00020273,2]
[350088084,1737611462231,-1355.17,0.00020273,2]
[350088085,1737611462246,-500.0,0.00020273,2]
[350088086,1737611462255,-500.0,0.00020273,2]
[350088087,1737611462266,-500.0,0.00020273,2]
[350088088,1737611462277,-3281.81,0.00020273,2]
[350088089,1737611462287,-1000.0,0.00020273,2]
[350088090,1737611462296,-1048.55,0.00020273,2]
[350088091,1737611462306,-1220.7,0.00020273,2]
[350088092,1737611462315,-500.0,0.00020273,2]
[350088093,1737611462325,-500.0,0.00020273,2]
[350088094,1737611462335,-985.82,0.00020273,2]
[350088095,1737611462345,-886.58,0.00020273,2]
[350088096,1737611462355,-500.0,0.00020273,2]
[350088097,1737611462365,-500.0,0.00020273,2]
[350088098,1737611462375,-1562.02,0.00020273,2]
[350088099,1737611462386,-500.0,0.00020273,2]
[350088100,1737611462396,-500.0,0.00020273,2]
[350088101,1737611462406,-2055.78,0.00020273,2]
[350088102,1737611462416,-500.0,0.00020273,2]
[350088103,1737611462426,-500.0,0.00020273,2]
[350088104,1737611462436,-1302.95,0.00020273,2]
[350088105,1737611462446,-500.0,0.00020273,2]
[350088106,1737611462456,-577.7,0.00020273,2]
[350088107,1737611462466,-906.73,0.00020273,2]
[350088108,1737611462475,-500.0,0.00020273,2]
[350088109,1737611462486,-500.0,0.00020273,2]
[350088110,1737611462495,-500.0,0.00020273,2]
[350088111,1737611462506,-500.0,0.00020273,2]
[350088112,1737611462516,-500.0,0.00020273,2]
[350088113,1737611462526,-500.0,0.00020273,2]
[350088114,1737611462537,-500.0,0.00020273,2]
[350088115,1737611462547,-524.03078,0.00020273,2]
[350088116,1737611462557,-2505.01,0.00020306,2]
[350088117,1737611462567,-2087.18199457,0.00020314,2]
[350088118,1737611462577,-500.0,0.00020356,2]
[350088119,1737611462587,-200.0,0.00020372,2]
[350088120,1737611462599,-2087.18199457,0.00020383,2]
[350088121,1737611462609,-407.91,0.00020434,2]
[350088122,1737611462619,-500.0,0.00020445,2]
[350088123,1737611462629,-635.49,0.00020445,2]
[350088124,1737611462639,-500.0,0.00020445,2]
[350088125,1737611462648,-992.45,0.00020446,2]
[350088126,1737611462658,-500.0,0.00020446,2]
[350088127,1737611462669,-1922.27,0.00020446,2]
[350088128,1737611462680,-736.38,0.00020446,2]
[350088129,1737611462690,-598.74,0.00020446,2]
[350088130,1737611462700,-1530.88,0.00020446,2]
[350088131,1737611462710,-1226.94,0.00020446,2]
[350088132,1737611462720,-1453.16,0.00020446,2]
[350088133,1737611462730,-1139.9,0.00020446,2]
[350088134,1737611462750,-794.06,0.00020446,2]
[350088135,1737611462762,-500.0,0.00020446,2]
[350088136,1737611462775,-921.2,0.00020446,2]
[350088137,1737611462787,-2179.73,0.00020446,2]
[350088138,1737611462799,-2080.14,0.00020446,2]
[350088139,1737611462810,-1094.55,0.00020446,2]
[350088140,1737611462820,-898.14,0.00020446,2]
[350088141,1737611462830,-2682.36,0.00020446,2]
[350088142,1737611462841,-751.43,0.00020446,2]
[350088143,1737611462851,-500.0,0.00020446,2]
[350088144,1737611462861,-500.0,0.00020446,2]
[350088145,1737611462871,-500.0,0.00020446,2]
[350088146,1737611462881,-1027.46,0.00020446,2]
[350088147,1737611462891,-500.0,0.00020446,2]
[350088148,1737611462901,-2511.24,0.00020446,2]
[350088149,1737611462911,-622.38,0.00020446,2]
[350088150,1737611462921,-2087.18199457,0.00020452,2]
[350088151,1737611462931,-2507.56,0.00020459,2]
[350088152,1737611462941,-2087.18199457,0.00020521,2]
[350088153,1737611462951,-1054.9555037,0.00020533,2]
[350088154,1737611462961,-500.0,0.00020546,2]
[350088155,1737611462970,-652.91,0.00020546,2]
[350088156,1737611462980,-500.0,0.00020546,2]
[350088157,1737611462994,-1103.54,0.00020546,2]
[350088158,1737611463004,-500.0,0.00020546,2]
[350088159,1737611463014,-500.0,0.00020546,2]
[350088160,1737611463023,-500.0,0.00020546,2]
[350088161,1737611463034,-523.75,0.00020546,2]
[350088162,1737611463043,-814.46,0.00020546,2]
[350088163,1737611463053,-500.0,0.00020546,2]
[350088164,1737611463063,-521.67,0.00020546,2]
[350088165,1737611463073,-500.0,0.00020546,2]
[350088166,1737611463083,-500.0,0.00020546,2]
[350088167,1737611463093,-550.36,0.00020546,2]
[350088168,1737611463103,-661.84,0.00020546,2]
[350088169,1737611463114,-500.0,0.00020546,2]
[350088170,1737611463124,-500.0,0.00020546,2]
[350088171,1737611463134,-500.0,0.00020546,2]
[350088172,1737611463144,-500.0,0.00020546,2]
[350088173,1737611463155,-756.71,0.00020546,2]
[350088174,1737611463165,-500.0,0.00020546,2]
[350088175,1737611463177,-820.51,0.00020546,2]
[350088176,1737611463187,-500.0,0.00020546,2]
[350088177,1737611463197,-500.0,0.00020546,2]
[350088178,1737611463208,-500.0,0.00020546,2]
[350088179,1737611463218,-870.52,0.00020546,2]
[350088180,1737611463228,-500.0,0.00020546,2]
[350088181,1737611463238,-500.0,0.00020546,2]
[350088182,1737611463248,-500.0,0.00020546,2]
[350088183,1737611463258,-846.98,0.00020546,2]
[350088184,1737611463267,-560.38,0.00020546,2]
[350088185,1737611463277,-804.46,0.00020546,2]
[350088186,1737611463287,-500.0,0.00020546,2]
[350088187,1737611463297,-596.15,0.00020546,2]
[350088188,1737611463307,-500.0,0.00020546,2]
[350088189,1737611463316,-730.62,0.00020546,2]
[350088190,1737611463325,-722.81,0.00020546,2]
[350088191,1737611463334,-500.0,0.00020546,2]
[350088192,1737611463343,-500.0,0.00020546,2]
[350088193,1737611463352,-926.24,0.00020546,2]
[350088194,1737611463362,-872.58,0.00020546,2]
[350088195,1737611463371,-756.42,0.00020546,2]
[350088196,1737611463381,-571.58,0.00020546,2]
[350088197,1737611463390,-441.794103,0.00020546,2]
[350088198,1737611463400,-907.07,0.00020546,2]
[350088199,1737611463409,-500.0,0.00020546,2]
[350088200,1737611463420,-500.0,0.00020546,2]
[350088201,1737611463430,-740.54,0.00020546,2]
[350088202,1737611463440,-642.453793,0.00020546,2]
[350088203,1737611463450,-500.0,0.00020546,2]
[350088204,1737611463460,-500.0,0.00020546,2]
[350088205,1737611463470,-959.94,0.00020546,2]
[350088206,1737611463480,-770.37,0.00020546,2]
[350088207,1737611463491,-500.0,0.00020546,2]
[350088208,1737611463501,-961.12,0.00020546,2]
[350088209,1737611463511,-928.68,0.00020546,2]
[350088210,1737611463522,-500.0,0.00020546,2]
[350088211,1737611463532,-3389.92,0.00020546,2]
[350088212,1737611463542,-500.0,0.00020546,2]
[350088213,1737611463694,-1163.05,0.00020546,2]
[350088214,1737611463705,-3328.2,0.00020546,2]
[350088215,1737611463716,-500.0,0.00020546,2]
[350088216,1737611463725,-647.35,0.00020546,2]
[350088217,1737611463734,-597.37,0.00020546,2]
[350088218,1737611463745,-1351.46,0.00020546,2]
[350088219,1737611463755,-500.0,0.00020546,2]
[350088220,1737611463765,-1916.09,0.00020546,2]
[350088221,1737611463775,-1853.67,0.00020546,2]
[350088222,1737611463784,-500.0,0.00020546,2]
[350088223,1737611463794,-500.0,0.00020546,2]
[350088224,1737611463804,-500.0,0.00020546,2]
[350088225,1737611463814,-1180.89,0.00020546,2]
[350088226,1737611463823,-1225.17,0.00020546,2]
[350088227,1737611463834,-604.47,0.00020546,2]
[350088228,1737611463844,-2192.28,0.00020546,2]
[350088229,1737611463853,-1087.59,0.00020546,2]
[350088230,1737611463863,-490.0,0.00020546,2]
[350088231,1737611463873,-2557.78,0.00020546,2]
[350088232,1737611463883,-500.0,0.00020546,2]
[350088233,1737611463893,-500.0,0.00020546,2]
[350088234,1737611463902,-687.86,0.00020546,2]
[350088235,1737611463911,-526.68,0.00020546,2]
[350088236,1737611463921,-1114.72,0.00020546,2]
[350088237,1737611463930,-500.0,0.00020546,2]
[350088238,1737611463939,-1015.0,0.00020546,2]
[350088239,1737611463949,-484.35601683,0.00020546,2]
[350088240,1737611463958,-2635.11,0.00020546,2]
[350088241,1737611463969,-1230.27,0.00020546,2]
[350088242,1737611463979,-500.0,0.00020546,2]
[350088243,1737611463991,-582.1,0.00020546,2]
[350088244,1737611464001,-500.0,0.00020546,2]
[350088245,1737611464017,-500.0,0.00020546,2]
[350088246,1737611464027,-1842.56,0.00020546,2]
[350088247,1737611464037,-500.0,0.00020546,2]
[350088248,1737611464047,-500.0,0.00020546,2]
[350088249,1737611464056,-862.13,0.00020546,2]
[350088250,1737611464065,-500.0,0.00020546,2]
[350088251,1737611464075,-500.0,0.00020546,2]
[350088252,1737611464084,-687.14,0.00020546,2]
[350088253,1737611464093,-500.0,0.00020546,2]
[350088254,1737611464102,-500.0,0.00020546,2]
[350088255,1737611464112,-500.0,0.00020546,2]
[350088256,1737611464121,-1223.08,0.00020546,2]
[350088257,1737611464130,-653.44,0.00020546,2]
[350088258,1737611464140,-500.0,0.00020546,2]
[350088259,1737611464149,-568.47,0.00020546,2]
[350088260,1737611464159,-803.35,0.00020546,2]
[350088261,1737611464168,-519.41,0.00020546,2]
[350088262,1737611464178,-1382.01,0.00020546,2]
[350088263,1737611464188,-500.0,0.00020546,2]
[350088264,1737611464198,-1006.43,0.00020546,2]
[350088265,1737611464207,-500.0,0.00020546,2]
[350088266,1737611464216,-1438.72,0.00020546,2]
[350088267,1737611464226,-1915.2,0.00020546,2]
[350088268,1737611464240,-500.0,0.00020546,2]
[350088269,1737611464251,-500.0,0.00020546,2]
[350088270,1737611464261,-798.39,0.00020546,2]
[350088271,1737611464271,-2057.62,0.00020546,2]
[350088272,1737611464280,-2677.87,0.00020546,2]
[350088273,1737611464289,-500.0,0.00020547,2]
[350088274,1737611464299,-500.0,0.00020547,2]
[350088275,1737611464308,-500.0,0.00020547,2]
[350088276,1737611464317,-500.0,0.00020547,2]
[350088277,1737611464326,-500.0,0.00020547,2]
[350088278,1737611464336,-500.0,0.00020547,2]
[350088279,1737611464346,-500.0,0.00020547,2]
[350088280,1737611464355,-500.0,0.00020547,2]
[350088281,1737611464365,-500.0,0.00020547,2]
[350088282,1737611464374,-500.0,0.00020547,2]
[350088283,1737611464384,-151.0,0.00020547,2]
[350088284,1737611464393,-500.0,0.00020547,2]
[350088285,1737611464403,-151.0,0.00020547,2]
[350088286,1737611464412,-500.0,0.00020547,2]
[350088287,1737611464422,-500.0,0.00020547,2]
[350088288,1737611464431,-500.0,0.00020547,2]
[350088289,1737611464440,-500.0,0.00020547,2]
[350088290,1737611464450,-500.0,0.00020547,2]
[350088291,1737611464459,-167.938904,0.00020547,2]
[350088292,1737611464468,-500.0,0.00020547,2]
[350088293,1737611464477,-500.0,0.00020547,2]
[350088294,1737611464489,-500.0,0.00020547,2]
[350088295,1737611464499,-500.0,0.00020547,2]
[350088296,1737611464508,-500.0,0.00020547,2]
[350088297,1737611464517,-500.0,0.00020547,2]
[350088298,1737611464527,-513.53,0.00020547,2]
[350088299,1737611464536,-500.0,0.00020547,2]
[350088300,1737611464546,-500.0,0.00020547,2]
[350088301,1737611464556,-500.0,0.00020547,2]
[350088302,1737611464567,-500.0,0.00020547,2]
[350088303,1737611464576,-500.0,0.00020547,2]
[350088304,1737611464586,-366.44713255,0.00020547,2]
[350088305,1737611464596,-500.0,0.00020547,2]
[350088306,1737611464606,-500.0,0.00020547,2]
[350088307,1737611464616,-500.0,0.00020547,2]
[350088308,1737611464626,-532.0,0.00020547,2]
[350088309,1737611464635,-500.0,0.00020547,2]
[350088310,1737611464646,-500.0,0.00020547,2]
[350088311,1737611464655,-854.04,0.00020547,2]
[350088312,1737611464665,-500.0,0.00020547,2]
[350088313,1737611464677,-500.0,0.00020547,2]
[350088314,1737611464686,-500.0,0.00020547,2]
[350088315,1737611464695,-500.0,0.00020547,2]
[350088316,1737611464705,-289.49335815,0.00020547,2]
[350088317,1737611464714,-500.0,0.00020547,2]
[350088318,1737611464723,-500.0,0.00020547,2]
[350088319,1737611464734,-500.0,0.00020547,2]
[350088320,1737611464745,-751.33,0.00020547,2]
[350088321,1737611464754,-500.0,0.00020547,2]
[350088322,1737611464763,-506.25952538,0.00020547,2]
[350088323,1737611464772,-500.0,0.00020547,2]
[350088324,1737611464781,-151.0,0.00020547,2]
[350088325,1737611464790,-151.0,0.00020547,2]
[350088326,1737611464800,-645.53,0.00020547,2]
[350088327,1737611464809,-716.43,0.00020547,2]
[350088328,1737611464819,-500.0,0.00020547,2]
[350088329,1737611464830,-500.0,0.00020547,2]
[350088330,1737611464839,-500.0,0.00020547,2]
[350088331,1737611464849,-500.0,0.00020547,2]
[350088332,1737611464859,-522.59549447,0.00020547,2]
[350088333,1737611464870,-500.0,0.00020547,2]
[350088334,1737611464880,-500.0,0.00020547,2]
[350088335,1737611464889,-500.0,0.00020547,2]
[350088336,1737611464899,-308.24022293,0.00020547,2]
[350088337,1737611464908,-500.0,0.00020547,2]
[350088338,1737611464917,-500.0,0.00020547,2]
[350088339,1737611464926,-500.0,0.00020547,2]
[350088340,1737611464935,-500.0,0.00020547,2]
[350088341,1737611464944,-537.48,0.00020547,2]
[350088342,1737611464953,-500.0,0.00020547,2]
[350088343,1737611464962,-500.0,0.00020547,2]
[350088344,1737611464971,-500.0,0.00020547,2]
[350088345,1737611464980,-331.47045221,0.00020547,2]
[350088346,1737611464992,-500.0,0.00020547,2]
[350088347,1737611465002,-500.0,0.00020547,2]
[350088348,1737611465011,-500.0,0.00020547,2]
[350088349,1737611465020,-500.0,0.00020547,2]
[350088350,1737611465030,-500.0,0.00020547,2]
[350088351,1737611465040,-500.0,0.00020547,2]
[350088352,1737611465049,-500.0,0.00020547,2]
[350088353,1737611465059,-1962.38,0.00020547,2]
[350088354,1737611465068,-5446.26,0.00020547,2]
[350088355,1737611465078,-500.0,0.00020547,2]
[350088356,1737611465087,-1116.01,0.00020547,2]
[350088357,1737611465097,-500.0,0.00020547,2]
[350088358,1737611465106,-1678.25,0.00020547,2]
[350088359,1737611465116,-1056.81,0.00020547,2]
[350088360,1737611465125,-500.0,0.00020547,2]
[350088361,1737611465134,-500.0,0.00020547,2]
[350088362,1737611465144,-500.0,0.00020547,2]
[350088363,1737611465154,-500.0,0.00020547,2]
[350088364,1737611465164,-881.08,0.00020547,2]
[350088365,1737611465174,-500.0,0.00020547,2]
[350088366,1737611465183,-500.0,0.00020547,2]
[350088367,1737611465193,-2041.21,0.00020547,2]
[350088368,1737611465203,-1105.7,0.00020547,2]
[350088369,1737611465212,-500.0,0.00020547,2]
[350088370,1737611465222,-500.0,0.00020547,2]
[350088371,1737611465231,-500.0,0.00020547,2]
[350088372,1737611465241,-941.55,0.00020547,2]
[350088373,1737611465250,-500.0,0.00020547,2]
[350088374,1737611465259,-2112.6,0.00020547,2]
[350088375,1737611465269,-1306.29,0.00020547,2]
[350088376,1737611465278,-500.0,0.00020547,2]
[350088377,1737611465287,-1757.87,0.00020547,2]
[350088378,1737611465297,-500.0,0.00020547,2]
[350088379,1737611465307,-1355.17,0.00020547,2]
[350088380,1737611465316,-500.0,0.00020547,2]
[350088381,1737611465325,-500.0,0.00020547,2]
[350088382,1737611465335,-500.0,0.00020547,2]
[350088383,1737611465346,-3281.81,0.00020547,2]
[350088384,1737611465356,-1000.0,0.00020547,2]
[350088385,1737611465365,-1048.55,0.00020547,2]
[350088386,1737611465375,-1220.7,0.00020547,2]
[350088387,1737611465384,-500.0,0.00020547,2]
[350088388,1737611465393,-500.0,0.00020547,2]
[350088389,1737611465403,-985.82,0.00020547,2]
[350088390,1737611465412,-886.58,0.00020547,2]
[350088391,1737611465422,-157.57288745,0.00020547,2]
[350088392,1737611465431,-287.6522696,0.00020547,2]
[350088393,1737611465441,-1562.02,0.00020547,2]
[350088394,1737611465451,-152.085017,0.00020547,2]
[350088395,1737611465462,-500.0,0.00020547,2]
[350088396,1737611465471,-513.62794011,0.00020547,2]
[350088397,1737611465480,-2055.78,0.00020547,2]
[350088398,1737611465490,-613.95799974,0.00020547,2]
[350088399,1737611465500,-500.0,0.00020547,2]
[350088400,1737611465509,-1302.95,0.00020547,2]
[350088401,1737611465519,-169.064511,0.00020547,2]
[350088402,1737611465529,-169.064511,0.00020547,2]
[350088403,1737611465538,-500.0,0.00020547,2]
[350088404,1737611465548,-577.7,0.00020547,2]
[350088405,1737611465558,-433.512751,0.00020547,2]
[350088406,1737611465567,-433.512751,0.00020547,2]
[350088407,1737611465577,-906.73,0.00020547,2]
[350088408,1737611465586,-500.0,0.00020547,2]
[350088409,1737611465596,-500.0,0.00020547,2]
[350088410,1737611465605,-500.0,0.00020547,2]
[350088411,1737611465615,-500.0,0.00020547,2]
[350088412,1737611465624,-500.0,0.00020547,2]
[350088413,1737611465634,-473.76175792,0.00020547,2]
[350088414,1737611465643,-500.0,0.00020547,2]
[350088415,1737611465652,-524.03078,0.00020547,2]
[350088416,1737611465662,-472.49299766,0.00020565,2]
[350088417,1737611465672,-2087.18199457,0.0002059,2]
[350088418,1737611465681,-209.0,0.000206,2]